Cogmind - Beta 13 @@@ ROGUE MODE // 2024.04.08 @ 16:42:52 Player: opdo Result: Destroyed by H-55 Commando with Assault Rifle Performance ------------- Evolutions (1) 500 Regions Visited (5) 1000 Robots Destroyed (17) 85 Value Destroyed (371) 371 Prototype IDs (23) 460 Alien Tech Used (0) 0 Bonus (300) 300 TOTAL SCORE: 2716 Bonus ------- Aligned with FarCom 300 Cogmind --------- Core Integrity 0/400 Matter 282/300 Energy 100/100 System Corruption 7% Temperature Cool (0) Movement Core (200) Ox3 Location -9/Exiles Parts ------- > --- POWER (1) -------- (None) > --- PROPULSION (2) --- (None) > --- UTILITY (4) ------ Medium Storage Unit Structural Scanner Signal Interpreter > --- WEAPON (2) ------- (None) > --- INVENTORY (10) --- AWS/Autocannon Greatsword Peak State ------------ > --- POWER ------------ (None) > --- PROPULSION ------- Combat Airjet > --- UTILITY ---------- Medium Storage Unit Structural Scanner Signal Interpreter Seismic Detector > --- WEAPON ----------- Heavy Rocket Launcher > --- INVENTORY -------- Light Ion Engine Heavy Ion Cannon Assault Rifle AWS/Autocannon Greatsword [Rating: 17] Favorites ----------- Power Light Ion Engine Engine Light Ion Engine Propulsion Aluminum Leg Leg Aluminum Leg Hover Unit Combat Airjet Utility Signal Interpreter Device Seismic Detector Storage Medium Storage Unit Processor Signal Interpreter Protection Light Armor Plating Weapon Assault Rifle Energy Gun Medium Laser Ballistic Gun Assault Rifle Launcher Heavy Rocket Launcher Special Weapon Welding Torch Build | -11 -10 -10 -9 -9 -9 ------- Run | Yrd Mat Min Mat Min Exi Slots Evolved 2 | . . . 2 . . Power . | . . . . . . Propulsion . | . . . . . . Utility 2 | . . . 2 . . Weapon . | . . . . . . Parts Attached 20 | 7 2 4 2 2 3 Power 2 | 1 . 1 . . . Engine 2 | 1 . 1 . . . Core . | . . . . . . Reactor . | . . . . . . Propulsion 4 | 2 . . . . 2 Treads . | . . . . . . Leg 3 | 2 . . . . 1 Wheel . | . . . . . . Hover 1 | . . . . . 1 Flight . | . . . . . . Utility 8 | 1 2 1 2 2 . Device 3 | . 1 . 1 1 . Storage 2 | 1 . . . 1 . Processor 1 | . . 1 . . . Hackware . | . . . . . . Protection 2 | . 1 . 1 . . Artifact . | . . . . . . Weapon 6 | 3 . 2 . . 1 Energy Gun 1 | 1 . . . . . Energy Cannon . | . . . . . . Ballistic Gun 3 | 2 . 1 . . . Ballistic Cannon . | . . . . . . Launcher 1 | . . . . . 1 Special Weapon 1 | . . 1 . . . Impact Weapon . | . . . . . . Slashing Weapon . | . . . . . . Piercing Weapon . | . . . . . . Special Melee Weapon . | . . . . . . Unidentified Prototypes . | . . . . . . Corrupted Parts 1 | . . . . . 1 System Corruption 4 | . . . . . 4 Parts Lost 11 | . 1 1 . 1 8 Power 2 | . . 1 . . 1 Propulsion 3 | . . . . . 3 Utility 3 | . 1 . . 1 1 Weapon 3 | . . . . . 3 Highest Loss Streak 5 | . 1 1 . 1 5 To Critical Strikes . | . . . . . . Average Slot Usage (%) 96 | . 93 99 98 100 89 Engine 11 | . 14 13 11 11 10 Leg 22 | . 28 28 22 22 17 Device 11 | . 7 . 10 11 21 Storage 11 | . 14 14 11 11 11 Processor 9 | . . 9 11 11 11 Protection 5 | . . 4 10 10 . Ballistic Gun 20 | . 28 23 22 22 14 Special Weapon 1 | . . 4 . . . Naked Turns . | . . . . . . Heaviest Build 21 | 13 16 16 16 21 19 Greatest Support 20 | 20 20 20 20 20 20 Greatest Overweight (x) 3 | 3 . . . 1 3 Average Overweight (x) . | . . . . . . Largest Inventory Capacity 10 | 8 8 8 8 10 10 Average Capacity 9 | 7 8 8 8 9 10 Most Carried 10 | 4 7 8 8 10 10 Average Carried 7 | 2 5 7 6 7 9 Final Capacity 10 | 8 8 8 8 10 10 Final Carried 10 | 4 6 8 7 10 5 Class Distribution -------------------- 100% | Mutant Dominant Class ---------------- Mutant | -10/Materials Mutant | -10/Mines Mutant | -9/Materials Mutant | -9/Mines Mutant | -9/Exiles Resources | -11 -10 -10 -9 -9 -9 ----------- Run | Yrd Mat Min Mat Min Exi Matter Collected 521 | 141 22 127 . 231 . Remotely . | . . . . . . Salvage Created 563 | 32 124 243 . . 164 Parts 38 | 7 9 14 . . 8 Haulers Intercepted 1 | . 1 . . . . Recyclers Shooed . | . . . . . . Parts Field Recycled . | . . . . . . Retrieved Matter . | . . . . . . Parts Self-Destructed . | . . . . . . Prevented . | . . . . . . Kills | -11 -10 -10 -9 -9 -9 ------- Run | Yrd Mat Min Mat Min Exi Combat Hostiles Destroyed 11 | . 1 5 . . 5 Guns 6 | . 1 5 . . . AOE 5 | . . . . . 5 Classes Destroyed 7 | 1 3 3 . . . Builder 1 | . . 1 . . . Tunneler 2 | 2 . . . . . Hauler 1 | . 1 . . . . Recycler 1 | . . 1 . . . Watcher 1 | . 1 . . . . Swarmer 3 | . . 3 . . . Grunt 8 | . 1 2 . . 5 Best Kill Streak 5 | 2 2 3 . . 5 Combat Bots Only 5 | . 1 3 . . 5 Max Kills in Single Turn 5 | 1 1 2 . . 5 Gunslinging . | . . . . . . Exploded 5 | . . . . . 5 Melee . | . . . . . . Uniques/NPCs Destroyed . | . . . . . . Combat | -11 -10 -10 -9 -9 -9 -------- Run | Yrd Mat Min Mat Min Exi Hostile Shots Fired 151 | . 13 38 2 . 98 Missed 48 | . 3 7 . . 38 Damage Taken 1563 | . 145 311 30 83 994 Core 491 | . 38 45 15 . 393 Absorbed by Shields . | . . . . . . Core Remaining (%) 83 | 100 . 66 . . . Volleys Fired 92 | 2 12 76 1 . 1 Largest 2 | 2 2 2 2 . 1 Hottest 40 | 40 40 40 40 . 39 Shots Fired 125 | 4 24 94 2 . 1 Gun 70 | 4 24 40 2 . . Cannon . | . . . . . . Launcher 1 | . . . . . 1 Special 54 | . . 54 . . . Kinetic 70 | 4 24 40 2 . . Thermal 54 | . . 54 . . . Explosive 1 | . . . . . 1 Electromagnetic . | . . . . . . Robot Hit Streak 9 | 3 5 9 . . 1 Robot Miss Streak 2 | . 1 2 2 . . Penetration Max . | . . . . . . Secondary Targets . | . . . . . . Shots Hit Robots 43 | 3 15 24 . . 1 Core Hits 29 | 3 7 10 . 1 8 Critical Kills . | . . . . . . Critical Parts Destroyed . | . . . . . . Critical Strikes . | . . . . . . Melee Attacks . | . . . . . . Impact . | . . . . . . Slashing . | . . . . . . Piercing . | . . . . . . Sneak Attacks . | . . . . . . Combat Hostiles . | . . . . . . Follow-up Attacks . | . . . . . . Damage Inflicted 926 | 42 143 318 . 4 419 Guns 502 | 42 143 317 . . . Cannons . | . . . . . . Explosions 419 | . . . . . 419 Melee . | . . . . . . Ramming 5 | . . 1 . 4 . Kinetic 502 | 42 143 317 . . . Thermal . | . . . . . . Explosive 419 | . . . . . 419 Electromagnetic . | . . . . . . Impact . | . . . . . . Slashing . | . . . . . . Piercing . | . . . . . . Highest Corruption 7 | . . . . . 7 Average Corruption 6 | . . . . . 6 Corruption Purged . | . . . . . . Corruption Blocked . | . . . . . . Effects 1 | . . . . . 1 Matter Fused 1 | . . . . . 1 Overload Shots . | . . . . . . Overflow Damage . | . . . . . . Projectiles . | . . . . . . Explosions . | . . . . . . Melee . | . . . . . . Knockbacks . | . . . . . . Impact . | . . . . . . Kinetic . | . . . . . . Secondary . | . . . . . . Self-Inflicted Damage . | . . . . . . Shots . | . . . . . . Rammed . | . . . . . . Targets Rammed 2 | . . 1 . 1 . Kicked 2 | . . 1 . 1 . Crushed . | . . . . . . Highest Temperature 56 | . 18 56 . . 3 Average Temperature 26 | . 9 34 . . 3 Received Heat Transfer 288 | . 78 111 9 . 90 Siege Activations . | . . . . . . Robots Corrupted . | . . . . . . Combat Hostiles . | . . . . . . Parts Fried . | . . . . . . Impact Corruptions . | . . . . . . Robots Melted . | . . . . . . Combat Hostiles . | . . . . . . Parts Melted . | . . . . . . Heat Transferred . | . . . . . . Parts Sabotaged . | . . . . . . Parts Stolen . | . . . . . . Parts Stripped . | . . . . . . Power Chain Reactions . | . . . . . . Alert | -11 -10 -10 -9 -9 -9 ------- Run | Yrd Mat Min Mat Min Exi Peak Influence 91 | 10 71 91 67 25 . Initial 25 | . 6 23 23 25 . Average 34 | 1 23 72 40 13 . Maximum Alert Level . | . . . . . . Low Security (%) 100 | 100 100 100 100 100 . Level 1 . | . . . . . . Level 2 . | . . . . . . Level 3 . | . . . . . . Level 4 . | . . . . . . Level 5 . | . . . . . . High Security . | . . . . . . Max Security . | . . . . . . Squads Dispatched . | . . . . . . Investigation . | . . . . . . Extermination . | . . . . . . Reinforcement . | . . . . . . Assault . | . . . . . . Garrison . | . . . . . . Intercept . | . . . . . . Searches Triggered . | . . . . . . Construction Impeded . | . . . . . . Haulers Reinforced . | . . . . . . Active Scanning Responses . | . . . . . . Cargo Convoy Interrupts . | . . . . . . Stealth | -11 -10 -10 -9 -9 -9 --------- Run | Yrd Mat Min Mat Min Exi Distress Signals . | . . . . . . Communications Jammed . | . . . . . . Distress Signals . | . . . . . . Times Spotted 33 | . 4 5 2 . 22 Peak Tracking Total 16 | . 3 3 2 . 16 Tactical Retreats . | . . . . . . Traps | -11 -10 -10 -9 -9 -9 ------- Run | Yrd Mat Min Mat Min Exi Traps Triggered 1 | . . . . 1 . Indirectly . | . . . . . . Trap Hack Attempts . | . . . . . . Triggered . | . . . . . . Disarmed 6 | . . . 6 . . Reprogrammed . | . . . . . . Reused . | . . . . . . Traps Extracted . | . . . . . . Installed . | . . . . . . Triggered . | . . . . . . Machines | -11 -10 -10 -9 -9 -9 ---------- Run | Yrd Mat Min Mat Min Exi Machines Disabled 1 | . . . . . 1 Max in Single Turn 1 | . . . . . 1 Machines Repaired . | . . . . . . Machines Dismantled . | . . . . . . Machines Sabotaged . | . . . . . . Overloaded Fab Kills . | . . . . . . Hacking | -11 -10 -10 -9 -9 -9 --------- Run | Yrd Mat Min Mat Min Exi Machines Accessed 10 | . 1 1 3 1 4 Terminals 5 | . 1 1 3 . . Fabricators . | . . . . . . Repair Stations . | . . . . . . Recycling Units . | . . . . . . Scanalyzers . | . . . . . . Garrison Access . | . . . . . . Total Hacks 33 | . 4 2 7 1 19 Successful 29 | . 2 1 6 1 19 Failed 4 | . 2 1 1 . . Catastrophic 1 | . . 1 . . . Database Lockouts . | . . . . . . Manual 14 | . 4 2 7 . 1 Terminals 13 | . 4 2 7 . . Fabricators . | . . . . . . Repair Stations . | . . . . . . Recycling Units . | . . . . . . Scanalyzers . | . . . . . . Garrison Access . | . . . . . . Terminal Hacks 24 | . . 1 3 1 19 Record 18 | . . . . . 18 Open Door 1 | . . . . 1 . Branch Access Points 1 | . . 1 . . . Locate Traps 1 | . . . 1 . . Disarm Traps 1 | . . . 1 . . Zone Layout 1 | . . . 1 . . Derelict Proto ID Bank 1 | . . . . . 1 Fabricator Hacks . | . . . . . . Repair Station Hacks . | . . . . . . Recycling Unit Hacks . | . . . . . . Scanalyzer . | . . . . . . Garrison Access Hacks . | . . . . . . Unauthorized Hacks 5 | . 2 . 3 . . Terminals 5 | . 2 . 3 . . Botnet 3 | . 1 . 2 . . Operators 2 | . 1 . 1 . . Fabricators . | . . . . . . Repair Stations . | . . . . . . Recycling Units . | . . . . . . Scanalyzers . | . . . . . . Garrison Access . | . . . . . . Data Cores Recovered . | . . . . . . Used . | . . . . . . Hacking Detections 5 | . 1 1 3 . . Full Trace Events . | . . . . . . Feedback Events . | . . . . . . Feedback Blocked . | . . . . . . Robot Schematics Acquired . | . . . . . . Robots Built . | . . . . . . Authchips . | . . . . . . Time . | . . . . . . Total Robot Build Rating . | . . . . . . Part Schematics Acquired . | . . . . . . Parts Built . | . . . . . . Authchips . | . . . . . . Time . | . . . . . . Total Part Build Rating . | . . . . . . Parts Repaired . | . . . . . . Time . | . . . . . . Parts Recycled . | . . . . . . Recycled Matter . | . . . . . . Retrieved Matter . | . . . . . . Retrieved Components . | . . . . . . Parts Scanalyzed . | . . . . . . Part Schematics Acquired . | . . . . . . Parts Damaged . | . . . . . . Bothacking | -11 -10 -10 -9 -9 -9 ------------ Run | Yrd Mat Min Mat Min Exi Used RIF Installer . | . . . . . . Robots Hacked . | . . . . . . Non-combat . | . . . . . . Combat . | . . . . . . Robot Hacks Applied . | . . . . . . Relay Couplers Released . | . . . . . . Fabnet Peak Effective % . | . . . . . . Robots Rewired . | . . . . . . Allies Hacked . | . . . . . . Hacks Repelled . | . . . . . . Allies | -11 -10 -10 -9 -9 -9 -------- Run | Yrd Mat Min Mat Min Exi Total Allies . | . . . . . . Largest Group . | . . . . . . Highest-Rated Group . | . . . . . . Highest-Rated Ally . | . . . . . . Total Orders . | . . . . . . Ally Attacks . | . . . . . . Total Damage . | . . . . . . Kills . | . . . . . . Allies Corrupted . | . . . . . . Allies Melted . | . . . . . . Intel | -11 -10 -10 -9 -9 -9 ------- Run | Yrd Mat Min Mat Min Exi Robot Analysis Total . | . . . . . . Derelict Logs Recovered 3 | . . 1 . 2 . Drone Launches . | . . . . . . Drone Recoveries . | . . . . . . Exploration | -11 -10 -10 -9 -9 -9 ------------- Run | Yrd Mat Min Mat Min Exi Turns Passed 2141 | 71 152 478 190 744 506 Spaces Moved 1332 | 39 90 230 154 441 378 Core 16 | 15 . . . . 1 Treads . | . . . . . . Legs 1227 | 24 90 230 154 441 288 Wheels . | . . . . . . Hover 89 | . . . . . 89 Flight . | . . . . . . Fastest Speed 50 | 50 120 120 120 120 80 Average Speed 138 | 123 120 120 120 165 130 Slowest Speed 200 | 200 120 120 120 190 200 Overloaded Moves . | . . . . . . Propulsion Burnouts . | . . . . . . Robots Hopped . | . . . . . . Cave-ins Triggered . | . . . . . . Exploration Rate (%) 33 | 5 15 33 19 81 48 Regions Visited 5 Branch Regions 3 Pre-discovered Areas 1 | . . 1 . . . Known Exits Taken 3 | . . 1 1 1 . Unknown Exits Taken 2 | 1 1 . . . . Scrap Searched 3 | . . . . 3 . Spaces Dug . | . . . . . . Terrain Destroyed . | . . . . . . Melee . | . . . . . . Projectile . | . . . . . . AOE . | . . . . . . Terrain Rammed . | . . . . . . Walls Destroyed . | . . . . . . Machines Disabled . | . . . . . . Actions | -11 -10 -10 -9 -9 -9 --------- Run | Yrd Mat Min Mat Min Exi Total 1503 | 57 113 329 157 456 391 Wait 16 | . 4 12 . . . Move 1327 | 38 89 229 153 440 378 Hop . | . . . . . . Pick Up 31 | 10 5 5 1 8 2 Fast Attach . | . . . . . . Attach 15 | 6 2 2 2 1 2 Detach . | . . . . . . Swap 5 | 1 . 2 . 1 1 Drop 15 | . 1 2 . 5 7 Fire 92 | 2 12 76 1 . 1 Melee . | . . . . . . Ram . | . . . . . . Kick 2 | . . 1 . 1 . Crush . | . . . . . . Escape Stasis . | . . . . . . Rewire . | . . . . . . Trap . | . . . . . . Miscellaneous . | . . . . . . Route ------- -11/Scrapyard -10/Materials -10/Mines -9/Materials -9/Mines (discovered 3 exits: *Mat x2 / *Exi) -9/Exiles History --------- Turn | Location | Event 2 | -11/Scrapyard | Met Revision 17 21 | -11/Scrapyard | Discovered new exit (range 14) 72 | -11/Scrapyard | Entered Materials 208 | -10/Materials | Discovered new exit (range 7) 224 | -10/Materials | Entered Mines 301 | -10/Mines | Build established: Mutant 339 | -10/Mines | Discovered new exit (range 8) 361 | -10/Mines | Identified exit to Materials 702 | -10/Mines | Entered Materials 702 | -9/Materials | Evolved 2 slots: Utility x2 879 | -9/Materials | Discovered new exit (range 10) 891 | -9/Materials | Identified exit to Mines 892 | -9/Materials | Entered Mines 893 | -9/Mines | Met a Derelict bent on vengeance 929 | -9/Mines | Discovered new exit (range 10) 947 | -9/Mines | Identified exit to Materials 1387 | -9/Mines | Learned Materials security intel 1536 | -9/Mines | Discovered exit to Materials (range 5) 1575 | -9/Mines | Met a Derelict who couldn't figure out how to use a Trap Extractor 1591 | -9/Mines | Learned location of 1 exit from Lower Caves 1630 | -9/Mines | Deemed a non-threat by the Exiles lab entrance 1630 | -9/Mines | Discovered new exit (range 6) 1634 | -9/Mines | Identified exit to Exiles 1636 | -9/Mines | Entered Exiles 1665 | -9/Exiles | Met 8R-AWN 1689 | -9/Exiles | Met EX-HEX 1722 | -9/Exiles | Met EX-BIN 1741 | -9/Exiles | Aligned with FarCom system 1742 | -9/Exiles | Given EX-Vault access code 1809 | -9/Exiles | Opened EX-Vault 1858 | -9/Exiles | Exiles lab attacked by MAIN.C 1914 | -9/Exiles | Found AWS/Autocannon 1996 | -9/Exiles | Lost 3 parts (1n2w) 2131 | -9/Exiles | Core integrity fell below 50% 2140 | -9/Exiles | Core integrity fell below 20% 2142 | -9/Exiles | Destroyed by H-55 Commando with Assault Rifle Last Messages --------------- 02131_ G-34 Mercenary destroyed. 02131_ Machine disabled. 02131_ Slug penetrates H-55 Commando. 02133_ Penetrated by Slug. 02133_ Hvy. Rocket Launcher destroyed. 02133_ Seismic Detector destroyed. 02133_ Penetrated by Slug. 02135_ System corrupted: Matter fused (-9). 02136_ Slug penetrates Earth. 02136_ Slug penetrates Wall. 02138_ Slug penetrates Machine. 02138_ Cmb. Airjet destroyed. 02139_ B-36 Bruiser destroyed. 02139_ P-60 Hacker resets P-60 Hacker, system corruption cleaned. 02141_ Dropped Assault Rifle. 02141_ Penetrated by Slug. 02141_ Dropped Hvy. Ion Cannon. 02142_ Dropped Lgt. Ion Engine. 02142_ Slug penetrates Wall. Map ----- +----------------------------------------------------+ | ???????????????????????????##""""""## ######## | | ???????????????????????????##"""" ## ######## | | ???????????????????????????##""X" ##?????? | | ???????????????????????????##" ##?????? | | ???????????????????????????##" ## ######## | | ???????????????????????????##""""""## ######## | | ???????????????????????????###"###### ###""""" | | ??????????????????????????? "###### ###""""" | | ???????????????????????????"""????### ###""""" | | ???????????????????????????"""????### ###"" "" | | ??????????????????????????????????##" "" | | ??????????????????????????????????##" " | | ??????????????????????????????????##" " | | ?????????????????????###??????????##" " | | ?????????????????????###??????????##" " | | ????????????????????? ??????????##" " | | ??????????????????????"???????????### " | | ???????????????????##"" ??????????### " | | ???????????????????##"" ???????????##" "X" " | | ???????????????????##"" ?????????#### """ | | ???????????????????## ???????#### # """"""" | | ?????????????????????"" ?????#### # ######## | | ???????????????????#### ######## # ######## | | ???????????????######## ####### ###????? | | ???????????? """#####X# # ## ####?### | | ?????????? @*= ####### | | ?????????? ]*%/ #####" | | ?????????? * = " | | ?????????? !%%%! g ! | | ??????????## [ h !% %![ | | ??????????### p gp % *!% | | ??????????#### h= %! p | | ???????????####" hh[%[% % | | ????????????###""" !% """""" | | ?????????????##" ######""" | | ?????????????#"" "###########""" | | ???????????????"" g """####??#######""" | | ???????????????? h """####???????###"""" | | ???????????????" ""###?????????##"" | | ????????????????? ###??????????#"""" | | ??????????????????? b ???????????????? | | ????????????????????? ???????????????? | | ???????????????????????? ????????????????? | | ????????????????????????????????????????????? | | ?????????????????????????????????????????????? | | ??????????????????????????????????????????????? | | ????????????????????????????????????????????????" | | ?????????????????????????????????????????????????? | | ?????????????????????????????????????????????????? | | ?????????????????????????????????????????????????? | +----------------------------------------------------+ Best States ------------- Heat Dissipation 28 Energy Generation 10 Energy Capacity 250 Matter Stores 300 Matter Capacity 300 Sight Range 16 Terrain Scan Range 16 Terrain Scan Density 10 Armor Coverage 150 Evasion (%) 55 Item Schematics ----------------- None Robot Schematics ------------------ None Fabricated ------------ Nothing Alien Tech Used ----------------- None Achievements -------------- None Challenges ------------ None Game ------ Seed AccelerationNetworkConstruct Manual? 0 Play Time 00:14:59 Cumulative 32.4 hours Start 2024.04.08 @ 16:28:08 End 2024.04.08 @ 16:42:52 Sessions 1 Manual Loads 0 Difficulty Rogue Special Mode None Game No. 89 Rogue 87 Adventurer 2 Explorer 0 Win Type - Total 0 Types 0/0/0/0/0/0/0/0/0 Lore% 29 Gallery% 41 Achievement% 32 Wizard Run 0 Options --------- Layout 1 ASCII 0 Keyboard 0 Movement Arrows Keybinds 0 Fullscreen 2 Font 24/Smallcaps Map View 50x35 Zoom Use 0% Tactical HUD 1 Map Filters NONE Filters NONE Steam 1 RUN: 12118394-d653-493e-ad35-2c9694b04583